bitfinex-derivatives/quotes_SOLF0:USTF0_20250424
["timestamp","ask_amount","ask_price","bid_price","bid_amount"]
[1745519758362,14.80513546,152.12,152.07,25.22]
[1745519759267,6.5733,152.08,152.07,25.22]
[1745519759462,14.80513546,152.1,152.02,8.6914]
[1745519759463,14.80513546,152.1,152.04,25.22]
[1745519760070,6.574,152.07,152.04,25.22]
[1745519760257,27.2113,152.15,152.05,6.65655796]
[1745519760258,14.80513546,152.12,152.05,6.65655796]
[1745519760459,6.5731,152.09,152.06,6.65677611]
[1745519760658,6.5731,152.09,152.04,31.7947]
[1745519760859,6.5731,152.09,152.05,6.65830599]
[1745519761059,14.80513546,152.12,152.04,25.22]
[1745519761267,14.80513546,152.1,152.05,6.65875863]
[1745519761465,14.80513546,152.1,152.04,25.22]
[1745519761665,6.574,152.07,152.05,6.65779093]
[1745519761863,6.574,152.07,152.04,25.22]
[1745519762065,14.80513546,152.08,152.02,25.2]
[1745519762269,14.80513546,152.08,152.03,6.66407647]
[1745519762463,14.80513546,152.08,152.02,25.2]
[1745519762660,6.5737,152.08,152.03,13.23558657]
[1745519762865,18.70663546,152.1,152.04,6.66008657]
[1745519763066,18.70663546,152.1,152.05,6.66008657]
[1745519763269,18.70663546,152.1,152.02,31.7758]
[1745519763470,18.70663546,152.1,152.03,6.66081104]
[1745519763664,18.70663546,152.1,152.04,6.66081104]
[1745519763969,18.70663546,152.1,152.02,25.2]
[1745519764271,6.5751,152.04,152.03,6.65553592]
[1745519764667,14.80513546,152.08,152.03,6.65553592]
[1745519764868,6.5739,152.07,152.02,25.2]
[1745519765167,3.9015,152.1,152.03,6.65756273]
[1745519765364,1.9711,152.15,152.04,21.46269819]
[1745519765569,43.78703546,152.18,152.08,14.80513546]
[1745519765770,43.78703546,152.18,152.09,31.85756273]
[1745519765970,6.5706,152.15,152.11,6.5718]
[1745519766769,6.5706,152.15,152.1,14.80513546]
[1745519766971,6.5706,152.15,152.11,6.65521177]
[1745519767172,6.5706,152.15,152.1,14.80513546]
[1745519767377,6.5706,152.15,152.11,6.65202465]
[1745519767672,6.5706,152.15,152.1,6.5724]
[1745519767971,6.5706,152.15,152.11,6.64870737]
[1745519768165,6.5706,152.15,152.1,6.5724]
[1745519768366,3.7819,152.18,152.11,6.64677239]
[1745519768573,3.7819,152.18,152.09,31.7727]
[1745519768769,3.7819,152.18,152.1,6.64722388]
[1745519769073,6.571,152.14,152.11,6.64722388]
[1745519769273,6.571,152.14,152.1,6.5725]
[1745519769472,3.7819,152.18,152.11,6.6468407]
[1745519769664,3.7819,152.18,152.09,31.7726]
[1745519769867,3.7819,152.18,152.1,6.64635777]
[1745519770173,6.5711,152.14,152.11,6.64635777]
[1745519770372,68.57639575,152.24,152.12,6.64340286]
[1745519770577,2.0396,152.23,152.13,31.84340286]
[1745519770768,6.5697,152.17,152.13,25.2]
[1745519771274,6.5697,152.17,152.13,31.771]
[1745519771476,2.0396,152.23,152.13,25.2]
[1745519771965,6.5707,152.14,152.13,25.2]
[1745519772369,6.5705,152.15,152.13,25.2]
[1745519772771,1.8535,152.19,152.13,25.2]
[1745519773065,2.0396,152.23,152.13,25.2]
[1745519773066,6.5698,152.17,152.13,25.2]
[1745519773270,29.0931,152.23,152.13,25.2]
[1745519773569,23.67699575,152.2,152.13,25.2]
[1745519774174,6.5706,152.15,152.13,25.2]
[1745519774375,23.67699575,152.2,152.13,25.2]
[1745519774575,29.0931,152.23,152.13,25.2]
[1745519774576,52.77009575,152.23,152.13,25.2]
[1745519774876,6.569,152.18,152.13,25.2]
[1745519775175,6.569,152.18,152.14,6.5705]
[1745519775476,52.77009575,152.23,152.14,6.5705]
[1745519775673,52.77009575,152.23,152.13,25.2]
[1745519776378,52.77009575,152.23,152.13,31.7708]
[1745519776578,52.77009575,152.23,152.13,25.2]
[1745519776980,6.5689,152.19,152.14,6.5705]
[1745519777370,52.77009575,152.23,152.13,25.2]
[1745519778079,6.5692,152.18,152.13,31.771]
[1745519778272,52.77009575,152.23,152.13,25.2]
[1745519778573,27.57009575,152.23,152.14,1.64283541]
[1745519778777,6.5684,152.2,152.16,6.5696]
[1745519779079,6.5684,152.2,152.17,25.2]
[1745519779483,27.1965,152.25,152.17,25.2]
[1745519779778,1.9965,152.25,152.17,25.2]
[1745519780381,6.5676,152.22,152.17,31.7692]
[1745519780679,1.9965,152.25,152.17,31.7692]
[1745519780879,1.9965,152.25,152.17,25.2]
[1745519781380,6.5686,152.19,152.17,25.2]
[1745519781780,1.9965,152.25,152.17,25.2]
[1745519782481,6.5684,152.2,152.17,25.2]
[1745519783176,23.67699575,152.26,152.17,25.2]
[1745519783475,1.9614,152.27,152.2,23.67699575]
[1745519783680,6.5652,152.27,152.22,6.5671]
[1745519783882,1.9003,152.31,152.21,25.2]
[1745519784075,23.67699575,152.38,152.26,23.67699575]
[1745519784275,1.19005388,152.37,152.27,25.2]
[1745519784474,3.16715388,152.37,152.27,25.2]
[1745519784683,6.5645,152.29,152.27,25.2]
[1745519784884,23.67699575,152.35,152.27,25.2]
[1745519785081,27.1771,152.37,152.27,25.2]
[1745519785381,6.5629,152.33,152.27,25.2]
[1745519785582,27.1771,152.37,152.27,31.7651]
[1745519785783,27.1771,152.37,152.27,25.2]
[1745519786178,1.9771,152.37,152.27,25.2]
[1745519786683,1.9771,152.37,152.27,31.765]
[1745519786888,6.5619,152.35,152.27,25.2]
[1745519787182,1.9771,152.37,152.27,25.2]
[1745519787478,1.9771,152.37,152.29,23.67699575]
[1745519787684,23.67699575,152.43,152.3,473.02]
[1745519787885,3.9898,152.38,152.31,25.18]
[1745519788184,1.9848,152.38,152.31,25.18]
[1745519788687,6.5612,152.37,152.31,31.7432]
[1745519789385,6.5613,152.36,152.31,25.18]
[1745519790386,6.563,152.32,152.31,25.18]
[1745519790988,6.5634,152.31,152.3,473.02]
[1745519791289,6.5634,152.31,152.3,498.18]
[1745519792489,1.9848,152.38,152.3,512.94212574]
[1745519792794,6.5631,152.32,152.3,512.94212574]
[1745519793287,6.5631,152.32,152.3,498.18]
[1745519793488,14.76212574,152.37,152.3,498.18]
[1745519794288,1.9848,152.38,152.3,512.94212574]
[1745519794889,0.37984,152.4,152.34,14.76212574]
[1745519795084,0.37984,152.4,152.36,14.76212574]
[1745519795289,16.61882574,152.47,152.38,14.76212574]
[1745519795683,6.5575,152.45,152.39,25.16]
[1745519795879,16.61882574,152.47,152.39,31.7197]
[1745519796285,6.5576,152.45,152.39,31.7197]
[1745519796581,14.76212574,152.45,152.39,25.16]
[1745519796888,6.5587,152.42,152.36,14.76212574]
[1745519797089,6.5587,152.42,152.37,25.16]
[1745519797289,14.76212574,152.45,152.37,25.16]
[1745519797491,6.5586,152.43,152.37,25.16]
[1745519797690,25.44779955,152.47,152.37,25.16]
[1745519798593,25.44779955,152.47,152.37,31.7205]
[1745519798793,25.44779955,152.47,152.37,25.16]
[1745519798993,6.5585,152.43,152.37,25.16]
[1745519799193,25.44779955,152.47,152.38,6.5602]
[1745519799487,25.44779955,152.47,152.37,25.16]
[1745519800092,6.5591,152.42,152.37,25.16]
[1745519800394,25.44779955,152.47,152.37,25.16]
[1745519800894,6.559,152.42,152.38,6.5603]
[1745519801093,25.44779955,152.47,152.37,25.16]
[1745519801297,1.8567,152.47,152.37,48.75109955]
[1745519801595,6.5582,152.44,152.4,6.5593]
[1745519801786,1.8567,152.47,152.41,25.14]
[1745519802385,1.8591,152.48,152.41,25.14]
[1745519802585,6.5572,152.46,152.42,6.5585]
[1745519803196,6.5574,152.45,152.42,6.5585]
[1745519803696,1.9885,152.51,152.41,25.14]
[1745519803994,1.9885,152.51,152.43,6.5578]
[1745519804296,6.5564,152.48,152.41,25.14]
[1745519804797,6.5559,152.49,152.41,25.14]
[1745519804996,1.9885,152.51,152.41,25.14]
[1745519805392,6.5555,152.5,152.41,48.73109955]
[1745519805896,25.61889955,152.52,152.41,25.14]
[1745519806093,23.59109955,152.49,152.41,25.14]
[1745519806690,23.59109955,152.49,152.41,31.6989]
[1745519806894,6.5574,152.45,152.41,31.6989]
[1745519807893,23.59109955,152.49,152.39,472.46]
[1745519808098,23.59109955,152.5,152.4,25.14]
[1745519808701,23.59109955,152.47,152.37,25.14]
[1745519808895,23.59109955,152.44,152.37,25.14]
[1745519809095,6.5594,152.41,152.37,31.7005]
[1745519809290,1.8391,152.43,152.37,31.7005]
[1745519809501,6.5594,152.41,152.37,31.7005]
[1745519809699,1.8391,152.43,152.37,31.7005]
[1745519810000,1.8391,152.43,152.37,25.14]
[1745519810199,23.59109955,152.41,152.32,472.4]
[1745519810391,23.59109955,152.41,152.33,25.14]
[1745519810900,26.9791,152.43,152.08,23.59109955]
[1745519810901,23.59109955,152.35,152.25,497.56]
[1745519811101,23.59109955,152.32,152.25,25.14]
[1745519811598,6.5635,152.31,152.25,25.14]
[1745519811800,23.59109955,152.32,152.25,25.14]
[1745519812391,23.59109955,152.29,152.23,7.52709721]
[1745519812796,25.14,152.31,152.23,7.52709721]
[1745519813197,5.7655,152.34,152.27,6.5647]
[1745519813198,30.9055,152.34,152.27,6.5647]
[1745519813399,30.9055,152.34,152.26,25.14]
[1745519814902,37.4678,152.34,152.27,6.5651]
[1745519815100,30.9055,152.34,152.26,25.14]
[1745519815905,6.5629,152.33,152.26,31.7054]
[1745519816400,30.9055,152.34,152.26,31.7054]
[1745519816703,6.563,152.32,152.26,31.7054]
[1745519816904,30.9055,152.34,152.27,6.5651]
[1745519817207,6.5633,152.32,152.26,25.14]
[1745519817502,6.5633,152.32,152.26,31.7055]
[1745519818304,6.5633,152.32,152.26,25.14]
[1745519818501,5.7655,152.34,152.27,25.14]
[1745519818705,3.8008,152.34,152.27,25.14]
[1745519819304,25.14,152.39,152.29,23.59109955]
[1745519819505,31.7004,152.39,152.34,6.5621]
[1745519819706,6.5604,152.39,152.34,6.5621]
[1745519820106,6.5605,152.38,152.33,6.5624]
[1745519820401,23.59109955,152.37,152.29,25.14]
[1745519821005,23.59109955,152.37,152.27,6.565]
[1745519821206,6.5629,152.33,152.26,25.14]
[1745519821507,23.59109955,152.37,152.26,25.14]
[1745519822103,6.5633,152.32,152.27,6.565]
[1745519822304,6.5633,152.32,152.26,25.14]
[1745519822507,48.73109955,152.34,152.26,25.14]
[1745519822708,3.8808,152.33,152.26,25.14]
[1745519823105,3.8808,152.33,152.2,30.10838886]
[1745519823106,23.59109955,152.28,152.2,30.10838886]
[1745519823409,23.59109955,152.25,152.2,30.10838886]
[1745519823602,3.8502,152.24,152.2,30.10838886]
[1745519823805,43.35109955,152.21,152.02,231.05312261]
[1745519824008,23.59109955,152.06,152.02,231.05312261]
[1745519824304,30.16529955,152.06,152.02,231.05312261]
[1745519824710,23.59109955,152.06,152.02,231.05312261]
[1745519825209,23.59109955,152.06,152.02,148.0615291]
[1745519825512,25.14,152.08,152.02,148.0615291]
[1745519825707,23.59109955,152.09,152.02,148.0615291]
[1745519825912,48.73109955,152.09,152.02,148.0615291]
[1745519826107,23.59109955,152.06,152.02,148.0615291]
[1745519826315,23.59109955,152.03,152.02,148.0615291]
[1745519826813,23.59109955,152.03,151.99,298.79923525]
[1745519827408,23.59109955,152.06,151.99,298.79923525]
[1745519827711,48.73109955,152.06,151.99,298.79923525]
[1745519827910,23.59109955,152.03,151.99,298.79923525]
[1745519828110,23.59109955,152.0,151.99,298.79923525]
[1745519828314,23.59109955,152.0,151.95,1.8741]
[1745519828913,23.59109955,152.0,151.95,8.453]
[1745519829115,61.01475149,152.04,151.95,25.46519955]
[1745519829910,84.60585104,152.09,151.98,23.59109955]
[1745519830111,84.60585104,152.09,151.99,25.16]
[1745519830312,84.60585104,152.09,152.0,2.0123]
[1745519830513,61.01475149,152.09,152.0,2.0123]
[1745519830712,61.01475149,152.09,152.01,23.59109955]
[1745519831514,23.59109955,152.12,152.02,6.5756]
[1745519831715,23.59109955,152.12,152.01,23.59109955]
[1745519832517,23.59109955,152.12,152.0,2.0123]
[1745519833212,6.5721,152.11,152.04,6.575]
[1745519833417,86.17475149,152.13,152.04,25.16]
[1745519833719,61.01475149,152.14,152.04,25.16]
[1745519833919,61.01475149,152.14,152.05,23.59109955]
[1745519834113,61.01475149,152.14,152.04,25.16]
[1745519835016,23.59109955,152.15,152.04,25.16]
[1745519835318,6.5719,152.12,152.06,6.5738]
[1745519835819,23.59109955,152.15,152.05,23.59109955]
[1745519836018,61.01475149,152.14,152.05,23.59109955]
[1745519836215,61.01475149,152.14,152.06,48.75109955]
[1745519836415,61.01475149,152.14,152.09,6.5729]
[1745519836621,25.16,152.16,152.09,6.5729]
[1745519836920,25.16,152.16,152.07,25.16]
[1745519837218,23.59109955,152.15,152.07,25.16]
[1745519837411,25.16,152.16,152.07,25.16]
[1745519837618,61.01475149,152.19,152.09,23.59109955]
[1745519837918,61.01475149,152.19,152.12,23.59109955]
[1745519838116,61.01475149,152.19,152.13,25.16]
[1745519838619,61.01475149,152.19,152.18,6.569]
[1745519839118,33.6974,152.25,152.2,6.5679]
[1745519839918,27.1314,152.25,152.18,25.16]
[1745519840117,25.16,152.25,152.18,25.16]
[1745519840313,6.5648,152.28,152.18,25.16]
[1745519840721,25.16,152.29,152.19,6.5684]
[1745519840915,6.566,152.25,152.19,6.5684]
[1745519841721,23.59109955,152.27,152.18,25.16]
[1745519841920,25.16,152.29,152.18,48.75109955]
[1745519842116,25.16,152.32,152.21,23.59109955]
[1745519842416,23.59109955,152.33,152.26,6.5655]
[1745519842622,23.59109955,152.3,152.22,25.16]
[1745519843619,6.5647,152.28,152.22,31.7272]
[1745519843819,23.59109955,152.3,152.22,25.16]
[1745519845422,6.5656,152.26,152.22,25.16]
[1745519845720,23.59109955,152.3,152.22,25.16]
[1745519845921,6.5659,152.26,152.22,25.16]
[1745519846122,23.59109955,152.3,152.22,25.16]
[1745519846621,6.5652,152.27,152.22,25.16]
[1745519846920,48.75109955,152.33,152.22,25.16]
[1745519847821,6.5641,152.3,152.25,6.5659]
[1745519849222,6.5641,152.3,152.26,25.16]
[1745519849718,48.75109955,152.33,152.26,25.16]
[1745519849917,48.75109955,152.33,152.23,25.16]
[1745519851023,6.5645,152.29,152.24,6.5664]
[1745519851224,48.75109955,152.33,152.23,25.16]
[1745519851621,48.75109955,152.33,152.23,31.7265]
[1745519851824,48.75109955,152.33,152.23,25.16]
[1745519852823,6.5643,152.29,152.23,25.16]
[1745519853327,6.5643,152.29,152.24,6.5662]
[1745519853925,6.5643,152.29,152.25,6.566]
[1745519854127,48.75109955,152.33,152.23,25.16]
[1745519854427,48.75109955,152.33,152.24,1.9657]
[1745519855128,6.5647,152.29,152.24,8.5317]
[1745519855323,48.75109955,152.33,152.24,8.5317]
[1745519855828,6.5648,152.28,152.24,8.5317]
[1745519856028,6.5648,152.28,152.24,1.9657]
[1745519856225,48.75109955,152.33,152.24,1.9657]
[1745519856421,6.5653,152.27,152.24,1.9657]
[1745519857330,6.5653,152.27,152.24,8.5321]
[1745519857827,6.5648,152.28,152.25,6.5659]
[1745519858022,48.75109955,152.33,152.24,1.9657]
[1745519858331,6.5645,152.29,152.24,1.9657]
[1745519858526,48.75109955,152.33,152.24,1.9657]
[1745519858933,6.5659,152.26,152.24,1.9657]
[1745519859132,23.59109955,152.3,152.23,25.16]
[1745519859728,6.5664,152.24,152.23,25.16]
[1745519859928,23.59109955,152.27,152.19,25.14]
[1745519860127,23.59109955,152.24,152.19,25.14]
[1745519860328,6.568,152.21,152.19,25.14]
[1745519860527,23.59109955,152.24,152.19,25.14]
[1745519860728,48.73109955,152.24,152.14,25.14]
[1745519860930,6.5688,152.19,152.14,6.5705]
[1745519861128,23.59109955,152.21,152.14,6.5705]
[1745519861631,23.59109955,152.21,152.15,6.5702]
[1745519862040,6.5684,152.2,152.15,6.5702]
[1745519862339,23.59109955,152.21,152.14,6.5706]
[1745519862638,6.569,152.19,152.14,6.5706]
[1745519863138,23.59109955,152.21,152.13,31.7111]
[1745519863333,23.59109955,152.21,152.13,25.14]
[1745519863536,48.73109955,152.24,152.16,6.5698]
[1745519863736,23.59109955,152.17,152.04,355.0]
[1745519863931,23.59109955,152.14,152.05,3.8538]
[1745519864336,23.59109955,152.14,152.05,10.4282]
[1745519864941,6.5721,152.11,152.05,3.8538]
[1745519865141,23.59109955,152.14,152.05,3.8538]
[1745519865344,23.59109955,152.11,152.05,1.8605]
[1745519865742,6.5732,152.09,152.05,1.8605]
[1745519865945,23.59109955,152.11,152.05,1.8605]
[1745519866443,23.59109955,152.11,152.03,25.14]
[1745519867146,23.59109955,152.11,152.01,44.0]
[1745519867648,23.59109955,152.08,152.01,44.0]
[1745519868748,23.59109955,152.11,152.01,44.0]
[1745519869450,6.5747,152.05,152.01,44.0]
[1745519870250,23.59109955,152.11,152.01,44.0]
[1745519871046,6.5749,152.05,152.01,44.0]
[1745519871551,6.5752,152.04,152.01,44.0]
[1745519871952,23.59109955,152.11,152.01,44.0]
[1745519872351,6.5751,152.04,152.01,44.0]
[1745519872551,23.59109955,152.08,152.01,44.0]
[1745519872851,6.5758,152.03,152.01,44.0]
[1745519873951,6.5752,152.04,152.01,44.0]
[1745519874455,6.5755,152.03,152.01,44.0]
[1745519874653,23.59109955,152.08,152.01,50.5763]
[1745519874953,6.5751,152.04,152.01,50.5763]
[1745519875455,23.59109955,152.08,152.01,44.0]
[1745519876254,23.59109955,152.08,152.01,50.5763]
[1745519876656,6.5751,152.04,152.01,44.0]
[1745519877858,6.5755,152.03,152.01,44.0]
[1745519878754,6.5759,152.02,152.01,44.0]
[1745519880156,23.59109955,152.02,151.95,1.904]
[1745519880552,6.5767,152.01,151.96,6.5782]
[1745519880961,25.16,152.03,151.95,1.904]
[1745519881158,6.5758,152.03,151.99,6.5771]
[1745519881358,23.59109955,152.03,151.96,2.0125]
[1745519881958,6.5764,152.01,151.96,8.5908]
[1745519882158,23.59109955,152.03,151.96,2.0125]
[1745519882758,23.59109955,152.06,151.96,2.0125]
[1745519882960,1.9469,152.07,151.97,2.0117]
[1745519883162,25.16,152.08,151.98,25.16]
[1745519883364,23.59109955,152.06,151.98,25.16]
[1745519883765,6.5756,152.03,151.99,6.577]
[1745519884066,23.59109955,152.06,151.98,25.16]
[1745519884256,23.59109955,152.09,151.98,48.75109955]
[1745519884566,6.574,152.07,151.98,48.75109955]
[1745519884765,23.59109955,152.09,151.98,48.75109955]
[1745519884960,6.5745,152.06,151.98,48.75109955]
[1745519885159,23.59109955,152.09,151.98,48.75109955]
[1745519886064,6.5749,152.05,152.01,6.576]
[1745519886265,6.5749,152.05,152.02,25.16]
[1745519887065,6.5749,152.05,152.02,31.7359]
[1745519887364,6.5744,152.06,152.02,25.16]
[1745519887865,6.5747,152.05,152.02,31.7358]
[1745519888263,6.5747,152.05,152.02,25.16]
[1745519888465,6.5747,152.05,152.02,31.7359]
[1745519888664,23.59109955,152.09,152.02,25.16]
[1745519889157,23.59109955,152.09,152.03,6.5754]
[1745519889358,6.5741,152.07,152.03,6.5754]
[1745519889762,6.5743,152.06,152.03,6.5754]
[1745519890257,6.5741,152.07,152.02,25.16]
[1745519890461,23.59109955,152.09,152.02,25.16]
[1745519890961,23.59109955,152.06,151.97,475.5117]
[1745519891161,48.75109955,152.06,151.99,25.16]
[1745519891557,23.59109955,152.03,151.99,25.16]
[1745519891762,23.59109955,152.03,151.96,27.1725]
[1745519893566,6.5775,151.99,151.96,27.1725]
[1745519894066,6.577,152.0,151.96,33.7509]
[1745519894260,23.59109955,152.03,151.96,27.1725]
[1745519894665,6.5762,152.02,151.98,6.5776]
[1745519895871,48.75109955,152.06,151.96,27.1725]
[1745519896066,48.75109955,152.06,151.96,50.76359955]
[1745519896371,6.5747,152.05,151.96,50.76359955]
[1745519896572,23.59109955,152.09,151.96,50.76359955]
[1745519897072,23.59109955,152.09,152.0,6.5764]
[1745519897273,23.59109955,152.09,152.0,31.7564]
[1745519897674,23.59109955,152.09,152.01,6.5763]
[1745519897974,23.59109955,152.09,152.0,25.18]
[1745519898773,6.5753,152.04,152.0,31.7565]
[1745519899073,23.59109955,152.09,152.0,25.18]
[1745519899272,23.59109955,152.06,152.0,25.18]
[1745519899775,6.5757,152.03,152.0,25.18]
[1745519901173,23.59109955,152.06,152.0,25.18]
[1745519901875,6.5757,152.03,152.0,25.18]
[1745519902175,23.59109955,152.06,152.0,31.7565]
[1745519902474,6.5754,152.04,152.0,31.7565]
[1745519902674,23.59109955,152.06,152.0,31.7565]
[1745519902875,6.5758,152.03,152.0,25.18]
[1745519903377,6.5769,152.0,151.96,27.1925]
[1745519903578,23.59109955,152.03,151.97,6.6631527]
[1745519903769,23.59109955,152.03,151.96,27.1925]
[1745519904175,23.59109955,152.03,151.97,6.67905796]
[1745519904478,6.5775,151.99,151.96,25.18]
[1745519905279,6.5775,151.99,151.97,6.69084317]
[1745519905482,23.59109955,152.03,151.96,25.18]
[1745519905680,23.59109955,152.03,151.97,6.69018299]
[1745519905880,6.5771,152.0,151.96,31.7583]
[1745519906179,23.59109955,152.03,151.97,6.69093306]
[1745519906378,6.5764,152.01,151.98,6.69093306]
[1745519906576,6.5764,152.01,151.97,6.5779]
[1745519906776,6.5764,152.01,151.98,6.69699155]
[1745519906981,6.5764,152.01,151.97,6.5779]
[1745519907177,6.5764,152.01,151.98,8.3416976]
[1745519907371,6.5764,152.01,151.99,6.69705834]
[1745519907575,6.5764,152.01,151.98,6.5776]
[1745519907778,6.5764,152.01,151.99,6.70605547]
[1745519907973,6.5764,152.01,151.96,25.18]
[1745519908177,6.5764,152.01,151.97,6.70655961]
[1745519908379,6.5764,152.01,151.98,6.70655961]
[1745519908577,6.5764,152.01,151.99,6.70655961]
[1745519908779,6.5764,152.01,152.0,6.70655961]
[1745519909586,6.577,152.0,151.96,31.7583]
[1745519909884,6.577,152.0,151.97,8.07566666]
[1745519910084,6.5766,152.01,151.98,6.43102557]
[1745519910283,6.5766,152.01,151.97,8.22264109]
[1745519910479,14.82985954,152.02,151.98,6.43365711]
[1745519910789,14.82985954,152.04,151.99,1.64464109]
[1745519910990,14.82985954,152.04,152.0,1.64464109]
[1745519911378,14.82985954,152.02,151.96,25.18]
[1745519911681,14.82985954,152.02,151.97,6.43724742]
[1745519911883,14.82985954,152.0,151.95,1.904]
[1745519912090,14.82985954,152.0,151.96,1.64477177]
[1745519912290,14.82985954,152.0,151.95,1.904]
[1745519912691,6.5782,151.97,151.95,1.904]
[1745519913187,6.5778,151.98,151.95,1.904]
[1745519913488,14.82985954,152.0,151.95,1.904]
[1745519913692,14.82985954,152.0,151.96,1.64483579]
[1745519914086,14.82985954,152.0,151.95,1.904]
[1745519914391,6.5774,151.99,151.95,8.4829]
[1745519914593,6.5774,151.99,151.96,6.4365196]
[1745519914790,6.5774,151.99,151.95,1.904]
[1745519914984,14.82985954,152.02,151.97,1.64478186]
[1745519914985,6.577,152.0,151.97,1.64478186]
[1745519915486,14.82985954,152.02,151.95,1.904]
[1745519915687,14.82985954,152.02,151.96,6.43834058]
[1745519915894,25.18,152.05,151.97,31.59760017]
[1745519916095,25.18,152.05,151.97,25.16]
[1745519916293,25.18,152.05,151.98,6.5774]
[1745519916493,25.18,152.05,151.98,1.64454598]
[1745519916697,6.5762,152.02,151.99,6.5772]
[1745519917592,75.84461103,152.06,151.98,14.82985954]
[1745519917792,14.82985954,152.06,151.99,6.4354258]
[1745519917993,6.5748,152.05,152.02,6.5757]
[1745519919005,6.5744,152.06,152.03,6.5755]
[1745519919504,6.574,152.07,152.02,14.82985954]
[1745519919706,14.82985954,152.08,152.03,1.9901]
[1745519920102,6.5751,152.04,152.03,1.9901]
[1745519920303,14.82985954,152.06,152.01,27.0352]
[1745519920707,14.82985954,152.06,152.02,1.64404767]
[1745519921302,14.82985954,152.04,151.99,1.9901]
[1745519922407,6.5763,152.02,151.99,1.9901]
[1745519922611,14.82985954,152.04,151.99,8.5672]
[1745519922803,14.82985954,152.04,151.99,1.9901]
[1745519923205,14.82985954,152.06,151.99,1.9901]
[1745519923810,14.82985954,152.02,152.0,1.64433031]
[1745519924608,6.5768,152.01,151.98,25.16]
[1745519925002,14.82985954,152.02,151.98,25.16]
[1745519925208,6.5768,152.0,151.98,25.16]
[1745519926211,6.5772,151.99,151.98,25.16]
[1745519926411,14.82985954,152.0,151.95,3.7726]
[1745519927006,6.5779,151.98,151.94,25.16]
[1745519927211,14.82985954,151.98,151.94,25.16]
[1745519927413,14.82985954,151.96,151.95,1.64468598]
[1745519927611,14.82985954,151.96,151.91,25.45254]
[1745519927813,14.82985954,151.94,151.91,25.45254]
[1745519928711,6.5794,151.95,151.91,25.45254]
[1745519930111,6.5794,151.95,151.91,0.29254]
[1745519930308,14.82985954,151.96,151.82,25.16]
[1745519930309,14.82985954,151.92,151.82,25.16]
[1745519930513,14.82985954,151.89,151.82,25.16]
[1745519930715,21.41255954,151.87,151.82,25.16]
[1745519930917,14.82985954,151.87,151.82,25.16]
[1745519931111,14.82985954,151.89,151.82,25.16]
[1745519931515,14.82985954,151.89,151.83,6.5839]
[1745519931814,21.41145954,151.89,151.82,25.16]
[1745519933418,21.41145954,151.89,151.84,6.5837]
[1745519934019,21.41095954,151.91,151.86,6.5828]
[1745519934220,14.82985954,151.93,151.86,25.18]
[1745519934414,14.82985954,151.91,151.86,25.18]
[1745519935214,6.5812,151.9,151.86,25.18]
[1745519935817,6.5816,151.89,151.86,25.18]
[1745519936114,14.82985954,151.91,151.86,25.18]
[1745519936417,6.5816,151.89,151.86,25.18]
[1745519936813,21.41145954,151.89,151.84,1.8585]
[1745519937521,14.82985954,151.89,151.84,1.8585]
[1745519938015,14.82985954,151.93,151.84,1.8585]
[1745519938221,14.82985954,151.93,151.85,2.0142]
[1745519938815,6.581,151.91,151.87,6.5823]
[1745519939819,6.581,151.91,151.86,6.5827]
[1745519940029,6.5812,151.9,151.86,6.5827]
[1745519940319,14.82985954,151.93,151.86,6.5827]
[1745519940720,6.5807,151.91,151.86,6.5827]
[1745519941722,6.5803,151.92,151.85,2.0142]
[1745519941923,40.00985954,151.95,151.85,18.80755954]
[1745519942122,40.00985954,151.95,151.87,14.82985954]